[Event "Late-Titled-Tuesday-Blitz-February-06-2024"]
[Site "Chess.com"]
[Date "2024.02.06"]
[Round "7"]
[White "iwanyu"]
[Black "Bilan_Danila"]
[Result "1-0"]
[WhiteElo "2830"]
[BlackElo "2608"]
[TimeControl "180+1"]
[EndTime "15:16:46 PST"]
[Termination "iwanyu won by resignation"]

1. d4 {[%clk 0:03:00.9]} 1... d5 {[%clk 0:02:53.9]} 2. c4 {[%clk 0:03:00.8]}
2... c6 {[%clk 0:02:54.1]} 3. Nf3 {[%clk 0:03:00.8]} 3... Nf6 {[%clk 0:02:54.1]}
4. cxd5 {[%clk 0:03:01.7]} 4... cxd5 {[%clk 0:02:55]} 5. Nc3 {[%clk 0:03:01.6]}
5... Nc6 {[%clk 0:02:55.6]} 6. Bf4 {[%clk 0:03:02.3]} 6... Bf5 {[%clk
0:02:55.8]} 7. e3 {[%clk 0:03:01.2]} 7... e6 {[%clk 0:02:56.2]} 8. Qb3 {[%clk
0:03:01.9]} 8... Qb6 {[%clk 0:02:53.5]} 9. Qxb6 {[%clk 0:02:49]} 9... axb6
{[%clk 0:02:54.4]} 10. Bb5 {[%clk 0:02:44.1]} 10... Nd7 {[%clk 0:02:52]} 11. Ne5
{[%clk 0:02:31.4]} 11... Ndxe5 {[%clk 0:02:47.2]} 12. Bxe5 {[%clk 0:02:32.3]}
12... f6 {[%clk 0:02:44]} 13. Bc7 {[%clk 0:02:30.1]} 13... Kd7 {[%clk
0:02:29.9]} 14. Bxb6 {[%clk 0:02:28.9]} 14... Bd6 {[%clk 0:02:27.7]} 15. Ke2
{[%clk 0:02:20.1]} 15... Rhc8 {[%clk 0:02:25.6]} 16. Bc5 {[%clk 0:02:17.5]}
16... Bxc5 {[%clk 0:02:18.9]} 17. dxc5 {[%clk 0:02:18.4]} 17... Ke7 {[%clk
0:02:17.6]} 18. Rhc1 {[%clk 0:02:15.2]} 18... Na7 {[%clk 0:02:03.2]} 19. b4
{[%clk 0:02:10.6]} 19... Nc6 {[%clk 0:01:51.1]} 20. a3 {[%clk 0:02:03.2]} 20...
Ne5 {[%clk 0:01:35.5]} 21. Na4 {[%clk 0:01:59.3]} 21... Rc7 {[%clk 0:01:20.8]}
22. Nb6 {[%clk 0:01:55.8]} 22... Rd8 {[%clk 0:01:15.7]} 23. Rd1 {[%clk
0:01:48.5]} 23... Nc6 {[%clk 0:00:48.6]} 24. f3 {[%clk 0:01:41.6]} 24... g5
{[%clk 0:00:44.2]} 25. h3 {[%clk 0:01:32.9]} 25... h5 {[%clk 0:00:43.5]} 26.
Bxc6 {[%clk 0:01:23.1]} 26... Rxc6 {[%clk 0:00:43]} 27. a4 {[%clk 0:01:22.7]}
27... g4 {[%clk 0:00:41]} 28. a5 {[%clk 0:01:12.1]} 28... gxh3 {[%clk
0:00:38.8]} 29. gxh3 {[%clk 0:01:12.9]} 29... Bxh3 {[%clk 0:00:39.7]} 30. a6
{[%clk 0:01:08.2]} 30... bxa6 {[%clk 0:00:34.7]} 31. Rxa6 {[%clk 0:01:09.1]}
31... Rc7 {[%clk 0:00:32.3]} 32. Rh1 {[%clk 0:01:07.5]} 32... Bf5 {[%clk
0:00:29.6]} 33. Rxh5 {[%clk 0:01:03.8]} 33... Rg8 {[%clk 0:00:29.8]} 34. Rxf5
{[%clk 0:00:59.3]} 34... exf5 {[%clk 0:00:20.5]} 35. Nxd5+ {[%clk 0:00:58.3]}
35... Kd7 {[%clk 0:00:20.9]} 36. Nxf6+ {[%clk 0:00:58.1]} 1-0

[Event "Late-Titled-Tuesday-Blitz-February-06-2024"]
[Site "Chess.com"]
[Date "2024.02.06"]
[Round "7"]
[White "cristianserban1"]
[Black "trriinu"]
[Result "1-0"]
[WhiteElo "2527"]
[BlackElo "2244"]
[TimeControl "180+1"]
[EndTime "15:16:58 PST"]
[Termination "cristianserban1 won by resignation"]

1. Nf3 {[%clk 0:03:00.5]} 1... c5 {[%clk 0:02:47.1]} 2. g3 {[%clk 0:03:00.4]}
2... d5 {[%clk 0:02:31.7]} 3. Bg2 {[%clk 0:03:01.3]} 3... Nf6 {[%clk 0:02:29.3]}
4. O-O {[%clk 0:03:01.6]} 4... Nc6 {[%clk 0:02:29.2]} 5. d4 {[%clk 0:03:00.3]}
5... e6 {[%clk 0:02:29.3]} 6. c4 {[%clk 0:02:54.1]} 6... dxc4 {[%clk 0:02:22.1]}
7. dxc5 {[%clk 0:02:45.7]} 7... Qxd1 {[%clk 0:02:13.2]} 8. Rxd1 {[%clk
0:02:46.6]} 8... Bxc5 {[%clk 0:02:13.3]} 9. Nbd2 {[%clk 0:02:46.9]} 9... Ng4
{[%clk 0:02:04.9]} 10. e3 {[%clk 0:02:21.9]} 10... Nge5 {[%clk 0:01:52.1]} 11.
Nxe5 {[%clk 0:02:00.3]} 11... Nxe5 {[%clk 0:01:53]} 12. Bf1 {[%clk 0:02:01]}
12... b5 {[%clk 0:00:26.1]} 13. a4 {[%clk 0:02:00.1]} 13... Bb7 {[%clk
0:00:26.5]} 14. axb5 {[%clk 0:01:52.8]} 14... Rc8 {[%clk 0:00:20]} 15. Bg2
{[%clk 0:01:48.7]} 15... Bxg2 {[%clk 0:00:08.2]} 16. Kxg2 {[%clk 0:01:49.6]}
16... O-O {[%clk 0:00:08.3]} 17. Ne4 {[%clk 0:01:41.6]} 17... Bb6 {[%clk
0:00:07.9]} 18. Bd2 {[%clk 0:01:40.4]} 18... Nd3 {[%clk 0:00:04.2]} 19. Bc3
{[%clk 0:01:39.7]} 19... Rfd8 {[%clk 0:00:04.1]} 20. Rd2 {[%clk 0:01:28.1]}
20... h6 {[%clk 0:00:04.2]} 21. g4 {[%clk 0:01:24.8]} 21... f5 {[%clk
0:00:03.3]} 22. gxf5 {[%clk 0:01:25.1]} 22... exf5 {[%clk 0:00:03.7]} 23. Ng3
{[%clk 0:01:26]} 23... g6 {[%clk 0:00:03.8]} 24. Rad1 {[%clk 0:01:25.7]} 24...
Rd5 {[%clk 0:00:02.9]} 25. h4 {[%clk 0:01:23.1]} 25... Rxb5 {[%clk 0:00:02.9]}
26. h5 {[%clk 0:01:22.8]} 26... g5 {[%clk 0:00:02.8]} 27. e4 {[%clk 0:01:12.4]}
27... f4 {[%clk 0:00:03]} 28. Nf5 {[%clk 0:01:12.7]} 28... Rxf5 {[%clk 0:00:02]}
29. exf5 {[%clk 0:01:12.9]} 29... g4 {[%clk 0:00:02.1]} 30. Rxd3 {[%clk
0:01:02.8]} 30... cxd3 {[%clk 0:00:03]} 31. Rxd3 {[%clk 0:01:03.7]} 31... f3+
{[%clk 0:00:02.6]} 32. Kg3 {[%clk 0:01:03.7]} 32... Rf8 {[%clk 0:00:02.9]} 33.
f6 {[%clk 0:01:03.9]} 33... Bc7+ {[%clk 0:00:02.4]} 34. Kxg4 {[%clk 0:01:04.2]}
34... Re8 {[%clk 0:00:02.7]} 35. Kxf3 {[%clk 0:01:04.1]} 35... Kf7 {[%clk
0:00:02.8]} 36. Rd7+ {[%clk 0:01:04.5]} 36... Ke6 {[%clk 0:00:02.9]} 37. Rxc7
{[%clk 0:01:04.5]} 1-0

[Event "Late-Titled-Tuesday-Blitz-February-06-2024"]
[Site "Chess.com"]
[Date "2024.02.06"]
[Round "7"]
[White "Zallio"]
[Black "GAusal"]
[Result "1/2-1/2"]
[WhiteElo "2136"]
[BlackElo "2292"]
[TimeControl "180+1"]
[EndTime "15:17:01 PST"]
[Termination "Game drawn by repetition"]

1. e4 {[%clk 0:02:17.3]} 1... c6 {[%clk 0:02:57.8]} 2. d4 {[%clk 0:02:17.1]}
2... d5 {[%clk 0:02:57.9]} 3. e5 {[%clk 0:02:17.7]} 3... Bf5 {[%clk 0:02:57.2]}
4. Nf3 {[%clk 0:02:18.1]} 4... e6 {[%clk 0:02:57.6]} 5. Be2 {[%clk 0:02:18.7]}
5... Ne7 {[%clk 0:02:56.4]} 6. O-O {[%clk 0:02:18.8]} 6... Nd7 {[%clk
0:02:55.7]} 7. c4 {[%clk 0:02:19]} 7... Bg6 {[%clk 0:02:54.6]} 8. Nc3 {[%clk
0:02:18.8]} 8... Nf5 {[%clk 0:02:53.5]} 9. Bg5 {[%clk 0:02:11.2]} 9... Be7
{[%clk 0:02:51.4]} 10. Bxe7 {[%clk 0:02:11.1]} 10... Nxe7 {[%clk 0:02:51.4]} 11.
c5 {[%clk 0:02:11]} 11... O-O {[%clk 0:02:50.3]} 12. b4 {[%clk 0:02:09.5]} 12...
a6 {[%clk 0:02:49.4]} 13. a4 {[%clk 0:02:09.2]} 13... f6 {[%clk 0:02:49.4]} 14.
exf6 {[%clk 0:02:05.4]} 14... Nxf6 {[%clk 0:02:47.6]} 15. b5 {[%clk 0:02:04.7]}
15... axb5 {[%clk 0:02:46.7]} 16. axb5 {[%clk 0:02:05.2]} 16... Rxa1 {[%clk
0:02:46.5]} 17. Qxa1 {[%clk 0:02:06]} 17... Qc7 {[%clk 0:02:45.4]} 18. Qa7
{[%clk 0:02:00.4]} 18... Nd7 {[%clk 0:02:40.9]} 19. bxc6 {[%clk 0:01:54.4]}
19... Nxc6 {[%clk 0:02:37.3]} 20. Qa4 {[%clk 0:01:49.9]} 20... Bh5 {[%clk
0:02:28.5]} 21. Nb5 {[%clk 0:01:47.6]} 21... Qf4 {[%clk 0:02:10.9]} 22. Nd6
{[%clk 0:01:36]} 22... e5 {[%clk 0:02:07.4]} 23. Bb5 {[%clk 0:01:03]} 23... Bxf3
{[%clk 0:02:02.9]} 24. Bxc6 {[%clk 0:01:03.1]} 24... Qg4 {[%clk 0:01:57.9]} 25.
g3 {[%clk 0:00:57.5]} 25... Qh3 {[%clk 0:01:57]} 26. Bxd5+ {[%clk 0:00:55.5]}
26... Bxd5 {[%clk 0:01:53.3]} 27. f3 {[%clk 0:00:55.5]} 27... Bc6 {[%clk
0:01:44.6]} 28. Qb3+ {[%clk 0:00:52.1]} 28... Kh8 {[%clk 0:01:41.8]} 29. Nf7+
{[%clk 0:00:50]} 29... Rxf7 {[%clk 0:01:39.4]} 30. Qxf7 {[%clk 0:00:49.5]} 30...
Nf6 {[%clk 0:01:25.6]} 31. dxe5 {[%clk 0:00:39.6]} 31... Ng8 {[%clk 0:01:21.4]}
32. e6 {[%clk 0:00:39.4]} 32... Bb5 {[%clk 0:01:16.4]} 33. Re1 {[%clk
0:00:33.5]} 33... h6 {[%clk 0:01:07.8]} 34. e7 {[%clk 0:00:33.6]} 34... Nf6
{[%clk 0:01:07.6]} 35. Qg6 {[%clk 0:00:24.3]} 35... Qd7 {[%clk 0:01:01.7]} 36.
Qf7 {[%clk 0:00:20]} 36... Ne8 {[%clk 0:00:57.6]} 37. Qf8+ {[%clk 0:00:18.9]}
37... Kh7 {[%clk 0:00:56.9]} 38. g4 {[%clk 0:00:19.6]} 38... Qd4+ {[%clk
0:00:55.2]} 39. Kh1 {[%clk 0:00:19.9]} 39... Qf2 {[%clk 0:00:53.5]} 40. Qf5+
{[%clk 0:00:20.1]} 40... Kh8 {[%clk 0:00:51.6]} 41. Qf8+ {[%clk 0:00:20.9]}
41... Kh7 {[%clk 0:00:51.8]} 42. Qf5+ {[%clk 0:00:21.6]} 42... Kh8 {[%clk
0:00:51.9]} 43. Qf8+ {[%clk 0:00:22.3]} 43... Kh7 {[%clk 0:00:52.3]} 1/2-1/2

[Event "Late-Titled-Tuesday-Blitz-February-06-2024"]
[Site "Chess.com"]
[Date "2024.02.06"]
[Round "7"]
[White "Doublekk14"]
[Black "TheMagician"]
[Result "1-0"]
[WhiteElo "2310"]
[BlackElo "2155"]
[TimeControl "180+1"]
[EndTime "15:17:09 PST"]
[Termination "Doublekk14 won on time"]

1. c4 {[%clk 0:02:57.9]} 1... Nf6 {[%clk 0:02:58.9]} 2. Nc3 {[%clk 0:02:57.4]}
2... e6 {[%clk 0:02:58.2]} 3. e4 {[%clk 0:02:56.5]} 3... d5 {[%clk 0:02:55.9]}
4. exd5 {[%clk 0:02:56.7]} 4... exd5 {[%clk 0:02:56]} 5. d4 {[%clk 0:02:57.6]}
5... Bb4 {[%clk 0:02:51.2]} 6. Nf3 {[%clk 0:02:56]} 6... O-O {[%clk 0:02:50.6]}
7. Be2 {[%clk 0:02:50.1]} 7... dxc4 {[%clk 0:02:49.9]} 8. O-O {[%clk 0:02:48.9]}
8... c5 {[%clk 0:02:46.7]} 9. d5 {[%clk 0:02:45.3]} 9... Bxc3 {[%clk 0:02:43.1]}
10. bxc3 {[%clk 0:02:43.5]} 10... Qxd5 {[%clk 0:02:43.2]} 11. Qxd5 {[%clk
0:02:38.4]} 11... Nxd5 {[%clk 0:02:43.1]} 12. Bxc4 {[%clk 0:02:38.7]} 12... Nxc3
{[%clk 0:02:39.2]} 13. Ba3 {[%clk 0:02:31.9]} 13... Nd7 {[%clk 0:02:00.3]} 14.
Rac1 {[%clk 0:02:09.1]} 14... Ne4 {[%clk 0:01:47.3]} 15. Rfe1 {[%clk 0:01:46.6]}
15... Nef6 {[%clk 0:01:46.9]} 16. Re7 {[%clk 0:01:41.9]} 16... b6 {[%clk
0:01:41.9]} 17. Ng5 {[%clk 0:01:39.4]} 17... h6 {[%clk 0:01:18.4]} 18. Nxf7
{[%clk 0:01:32.1]} 18... Kh7 {[%clk 0:01:15]} 19. Nd6 {[%clk 0:01:23.3]} 19...
Nb8 {[%clk 0:00:33.6]} 20. Rc7 {[%clk 0:00:58.1]} 20... Ba6 {[%clk 0:00:22.8]}
21. Be6 {[%clk 0:00:52.3]} 21... Bd3 {[%clk 0:00:08.2]} 22. Rd1 {[%clk
0:00:42.3]} 22... Bc2 {[%clk 0:00:05.3]} 23. Rc1 {[%clk 0:00:40.2]} 23... Bg6
{[%clk 0:00:04.9]} 24. Bb2 {[%clk 0:00:40]} 24... Na6 {[%clk 0:00:02.2]} 25. Re7
{[%clk 0:00:33.7]} 25... Nb4 {[%clk 0:00:01.5]} 26. Nf5 {[%clk 0:00:29.6]} 1-0

[Event "Late-Titled-Tuesday-Blitz-February-06-2024"]
[Site "Chess.com"]
[Date "2024.02.06"]
[Round "7"]
[White "Rawnsdale"]
[Black "martinez_95"]
[Result "1-0"]
[WhiteElo "2527"]
[BlackElo "2247"]
[TimeControl "180+1"]
[EndTime "15:17:11 PST"]
[Termination "Rawnsdale won by resignation"]

1. e4 {[%clk 0:03:00.9]} 1... c5 {[%clk 0:02:49.2]} 2. Nf3 {[%clk 0:02:58.6]}
2... Nc6 {[%clk 0:02:47.7]} 3. d4 {[%clk 0:02:58.3]} 3... cxd4 {[%clk
0:02:47.7]} 4. Nxd4 {[%clk 0:02:59.2]} 4... g6 {[%clk 0:02:48]} 5. Nc3 {[%clk
0:02:59.4]} 5... Bg7 {[%clk 0:02:48.5]} 6. Be3 {[%clk 0:02:59.5]} 6... Nf6
{[%clk 0:02:48.3]} 7. f3 {[%clk 0:02:57.8]} 7... O-O {[%clk 0:02:48.1]} 8. Bc4
{[%clk 0:02:56.7]} 8... d6 {[%clk 0:02:37.9]} 9. Bb3 {[%clk 0:02:35.8]} 9... a5
{[%clk 0:02:36.4]} 10. Qd2 {[%clk 0:02:31.2]} 10... Bd7 {[%clk 0:02:00.5]} 11.
O-O-O {[%clk 0:02:22.5]} 11... a4 {[%clk 0:01:49]} 12. Bc4 {[%clk 0:02:15.5]}
12... Nxd4 {[%clk 0:01:36.8]} 13. Bxd4 {[%clk 0:02:12.5]} 13... Qc7 {[%clk
0:01:24.4]} 14. Bd3 {[%clk 0:01:52.5]} 14... Rfc8 {[%clk 0:01:21.6]} 15. Bxf6
{[%clk 0:01:47.2]} 15... exf6 {[%clk 0:01:20.6]} 16. Nd5 {[%clk 0:01:44.3]}
16... Qd8 {[%clk 0:01:19.7]} 17. Qb4 {[%clk 0:01:39.1]} 17... Be6 {[%clk
0:01:16.9]} 18. Nb6 {[%clk 0:01:35.8]} 18... a3 {[%clk 0:01:05.7]} 19. b3 {[%clk
0:01:26.9]} 19... f5 {[%clk 0:01:05.7]} 20. Nxa8 {[%clk 0:01:25]} 20... Bh6+
{[%clk 0:00:48.8]} 21. Kb1 {[%clk 0:01:21.3]} 21... Qf6 {[%clk 0:00:48.3]} 22.
Qxa3 {[%clk 0:00:56.7]} 22... Bg7 {[%clk 0:00:48.5]} 23. Kc1 {[%clk 0:00:42.7]}
23... Bh6+ {[%clk 0:00:48.4]} 24. f4 {[%clk 0:00:40]} 24... Bxf4+ {[%clk
0:00:42.5]} 25. Kb1 {[%clk 0:00:39.5]} 25... Be5 {[%clk 0:00:34.5]} 26. exf5
{[%clk 0:00:37]} 26... Rc6 {[%clk 0:00:26.3]} 27. fxe6 {[%clk 0:00:33.8]} 27...
fxe6 {[%clk 0:00:20.2]} 28. Rhf1 {[%clk 0:00:33.7]} 28... Qh4 {[%clk 0:00:19.3]}
29. Qa4 {[%clk 0:00:23.1]} 1-0

[Event "Late-Titled-Tuesday-Blitz-February-06-2024"]
[Site "Chess.com"]
[Date "2024.02.06"]
[Round "7"]
[White "Pelusiansky"]
[Black "Witik"]
[Result "0-1"]
[WhiteElo "2484"]
[BlackElo "2757"]
[TimeControl "180+1"]
[EndTime "15:17:13 PST"]
[Termination "Witik won by resignation"]

1. c4 {[%clk 0:03:00.9]} 1... c6 {[%clk 0:02:57.9]} 2. Nc3 {[%clk 0:02:59.2]}
2... d5 {[%clk 0:02:58.4]} 3. d4 {[%clk 0:02:59.5]} 3... Nf6 {[%clk 0:02:58.6]}
4. Nf3 {[%clk 0:02:59]} 4... e6 {[%clk 0:02:58.1]} 5. Bg5 {[%clk 0:02:57.1]}
5... h6 {[%clk 0:02:55.3]} 6. Bh4 {[%clk 0:02:56.7]} 6... dxc4 {[%clk
0:02:54.6]} 7. e4 {[%clk 0:02:53.8]} 7... g5 {[%clk 0:02:54.7]} 8. Bg3 {[%clk
0:02:54.2]} 8... b5 {[%clk 0:02:55.4]} 9. Be2 {[%clk 0:02:51.5]} 9... Bb7 {[%clk
0:02:53.6]} 10. O-O {[%clk 0:02:50.4]} 10... Nbd7 {[%clk 0:02:53.4]} 11. h4
{[%clk 0:02:37.1]} 11... b4 {[%clk 0:02:28.9]} 12. Na4 {[%clk 0:02:33.6]} 12...
Nxe4 {[%clk 0:02:27.5]} 13. Be5 {[%clk 0:02:31.7]} 13... Rg8 {[%clk 0:02:04.2]}
14. Qc2 {[%clk 0:02:27.4]} 14... c5 {[%clk 0:02:02.1]} 15. Rad1 {[%clk
0:02:08.6]} 15... gxh4 {[%clk 0:01:54.1]} 16. dxc5 {[%clk 0:01:53.1]} 16... Qc8
{[%clk 0:01:14.2]} 17. Qxc4 {[%clk 0:01:36.6]} 17... Nxe5 {[%clk 0:00:51.8]} 18.
Nxe5 {[%clk 0:01:32.7]} 18... Rxg2+ {[%clk 0:00:50.4]} 19. Kxg2 {[%clk
0:01:26.9]} 19... Nd2+ {[%clk 0:00:50]} 20. Kg1 {[%clk 0:01:17.3]} 20... Nxc4
{[%clk 0:00:46.6]} 21. Bxc4 {[%clk 0:01:15.9]} 21... Bg7 {[%clk 0:00:27.1]} 22.
Rfe1 {[%clk 0:00:27.1]} 22... Kf8 {[%clk 0:00:17.5]} 23. Bf1 {[%clk 0:00:11.3]}
23... Bxe5 {[%clk 0:00:17]} 24. Rxe5 {[%clk 0:00:11.5]} 24... Qc6 {[%clk
0:00:17.3]} 0-1

[Event "Late-Titled-Tuesday-Blitz-February-06-2024"]
[Site "Chess.com"]
[Date "2024.02.06"]
[Round "7"]
[White "Escanor89"]
[Black "ameetghasi100"]
[Result "0-1"]
[WhiteElo "2514"]
[BlackElo "2728"]
[TimeControl "180+1"]
[EndTime "15:17:20 PST"]
[Termination "ameetghasi100 won on time"]

1. Nf3 {[%clk 0:03:00.9]} 1... g6 {[%clk 0:03:00.9]} 2. d4 {[%clk 0:02:59.5]}
2... Bg7 {[%clk 0:03:00]} 3. e4 {[%clk 0:02:59.6]} 3... d6 {[%clk 0:03:00]} 4.
Nc3 {[%clk 0:02:59]} 4... Nf6 {[%clk 0:03:00.6]} 5. h3 {[%clk 0:02:56.5]} 5...
O-O {[%clk 0:03:01.2]} 6. Be3 {[%clk 0:02:54.8]} 6... Nc6 {[%clk 0:02:59.3]} 7.
Be2 {[%clk 0:02:48.5]} 7... e5 {[%clk 0:02:56.9]} 8. dxe5 {[%clk 0:02:44.7]}
8... dxe5 {[%clk 0:02:56.7]} 9. Qxd8 {[%clk 0:02:39.7]} 9... Rxd8 {[%clk
0:02:57.6]} 10. O-O {[%clk 0:02:35.7]} 10... Be6 {[%clk 0:02:56.9]} 11. Rfd1
{[%clk 0:02:34.7]} 11... h6 {[%clk 0:02:55.8]} 12. Rxd8+ {[%clk 0:02:24]} 12...
Rxd8 {[%clk 0:02:54.5]} 13. Rd1 {[%clk 0:02:23]} 13... Rxd1+ {[%clk 0:02:53]}
14. Bxd1 {[%clk 0:02:23.9]} 14... Ne8 {[%clk 0:02:43.3]} 15. Nd2 {[%clk
0:02:12.3]} 15... Nd6 {[%clk 0:02:42.5]} 16. f3 {[%clk 0:02:01.7]} 16... f5
{[%clk 0:02:33]} 17. Nd5 {[%clk 0:01:36.5]} 17... Bxd5 {[%clk 0:02:19.1]} 18.
exd5 {[%clk 0:01:36.1]} 18... Nb4 {[%clk 0:02:19.6]} 19. c3 {[%clk 0:01:29.4]}
19... Nd3 {[%clk 0:01:38.5]} 20. Bxa7 {[%clk 0:01:09]} 20... Nxb2 {[%clk
0:01:37.9]} 21. Bb3 {[%clk 0:01:08.4]} 21... Kf8 {[%clk 0:01:01.5]} 22. Bb8
{[%clk 0:00:34.3]} 22... Ne8 {[%clk 0:00:59.7]} 23. c4 {[%clk 0:00:19.2]} 23...
b6 {[%clk 0:00:50.4]} 24. g4 {[%clk 0:00:18.4]} 24... Ke7 {[%clk 0:00:37.5]} 25.
gxf5 {[%clk 0:00:17.7]} 25... gxf5 {[%clk 0:00:36.5]} 26. c5 {[%clk 0:00:16.7]}
26... bxc5 {[%clk 0:00:35.2]} 27. Ba7 {[%clk 0:00:16.6]} 27... Kd6 {[%clk
0:00:33.4]} 28. Kf2 {[%clk 0:00:09.8]} 28... Nf6 {[%clk 0:00:32.9]} 29. Ke2
{[%clk 0:00:06.1]} 29... Nxd5 {[%clk 0:00:32.6]} 30. Nc4+ {[%clk 0:00:05.1]}
30... Nxc4 {[%clk 0:00:32.2]} 31. Bxc4 {[%clk 0:00:06]} 31... Nb4 {[%clk
0:00:31.6]} 32. a3 {[%clk 0:00:05.2]} 32... Nc6 {[%clk 0:00:31.6]} 0-1

[Event "Late-Titled-Tuesday-Blitz-February-06-2024"]
[Site "Chess.com"]
[Date "2024.02.06"]
[Round "7"]
[White "Walter_White_Poland"]
[Black "protectiago"]
[Result "1-0"]
[WhiteElo "2400"]
[BlackElo "2101"]
[TimeControl "180+1"]
[EndTime "15:17:20 PST"]
[Termination "Walter_White_Poland won by checkmate"]

1. d4 {[%clk 0:03:00.9]} 1... Nf6 {[%clk 0:02:43.8]} 2. Bf4 {[%clk 0:02:59.6]}
2... e6 {[%clk 0:02:29.4]} 3. e3 {[%clk 0:02:57.7]} 3... d5 {[%clk 0:02:26.8]}
4. Nf3 {[%clk 0:02:56.2]} 4... c5 {[%clk 0:02:20.8]} 5. c3 {[%clk 0:02:56.2]}
5... Nc6 {[%clk 0:02:02.2]} 6. Nbd2 {[%clk 0:02:54.3]} 6... Qb6 {[%clk
0:02:00.5]} 7. Qb3 {[%clk 0:02:52.6]} 7... c4 {[%clk 0:01:57.9]} 8. Qxb6 {[%clk
0:02:37.8]} 8... axb6 {[%clk 0:01:58]} 9. a3 {[%clk 0:02:38.3]} 9... b5 {[%clk
0:01:58]} 10. Rc1 {[%clk 0:02:36.1]} 10... Bd7 {[%clk 0:00:48.7]} 11. h3 {[%clk
0:02:33.4]} 11... h6 {[%clk 0:00:47.8]} 12. g4 {[%clk 0:02:30.1]} 12... g5
{[%clk 0:00:42.8]} 13. Bc7 {[%clk 0:02:16.9]} 13... Be7 {[%clk 0:00:39.6]} 14.
Bg2 {[%clk 0:02:13.4]} 14... Bd8 {[%clk 0:00:39.8]} 15. Bxd8 {[%clk 0:02:01.3]}
15... Nxd8 {[%clk 0:00:36.5]} 16. Ne5 {[%clk 0:02:01]} 16... Nc6 {[%clk
0:00:29.5]} 17. f4 {[%clk 0:01:55.8]} 17... Nxe5 {[%clk 0:00:28.6]} 18. fxe5
{[%clk 0:01:50.6]} 18... Ng8 {[%clk 0:00:27.9]} 19. e4 {[%clk 0:01:49.9]} 19...
Bc6 {[%clk 0:00:26.9]} 20. O-O {[%clk 0:01:44.5]} 20... dxe4 {[%clk 0:00:24.1]}
21. Nxe4 {[%clk 0:01:38.3]} 21... Bxe4 {[%clk 0:00:21.3]} 22. Bxe4 {[%clk
0:01:37.8]} 22... Ra7 {[%clk 0:00:18.7]} 23. d5 {[%clk 0:01:33.8]} 23... Ne7
{[%clk 0:00:16.9]} 24. d6 {[%clk 0:01:26.9]} 24... Nc6 {[%clk 0:00:17]} 25.
Bxc6+ {[%clk 0:01:25.4]} 25... bxc6 {[%clk 0:00:16.9]} 26. Kf2 {[%clk
0:01:15.9]} 26... Rd7 {[%clk 0:00:15.9]} 27. Ke3 {[%clk 0:01:15.7]} 27... Rg8
{[%clk 0:00:14.6]} 28. Rf6 {[%clk 0:01:05.2]} 28... Rg6 {[%clk 0:00:13.8]} 29.
Rxg6 {[%clk 0:01:03.4]} 29... fxg6 {[%clk 0:00:14.1]} 30. Rf1 {[%clk 0:01:03.6]}
30... c5 {[%clk 0:00:12.6]} 31. Rf6 {[%clk 0:01:01.7]} 31... Rf7 {[%clk
0:00:11.2]} 32. Rxe6+ {[%clk 0:00:57.8]} 32... Kd7 {[%clk 0:00:11.5]} 33. Rxg6
{[%clk 0:00:57.5]} 33... Rf1 {[%clk 0:00:11]} 34. Ke4 {[%clk 0:00:43.6]} 34...
Re1+ {[%clk 0:00:09.9]} 35. Kd5 {[%clk 0:00:43.1]} 35... Rd1+ {[%clk 0:00:10.2]}
36. Kxc5 {[%clk 0:00:42.9]} 36... Rd2 {[%clk 0:00:07.7]} 37. Rg7+ {[%clk
0:00:42.7]} 37... Kd8 {[%clk 0:00:05.3]} 38. e6 {[%clk 0:00:42.3]} 38... Rxb2
{[%clk 0:00:01.9]} 39. Rg8# {[%clk 0:00:41.7]} 1-0

[Event "Late-Titled-Tuesday-Blitz-February-06-2024"]
[Site "Chess.com"]
[Date "2024.02.06"]
[Round "7"]
[White "ImportedItalianMaple"]
[Black "Ajedrez_con_German"]
[Result "0-1"]
[WhiteElo "2501"]
[BlackElo "2666"]
[TimeControl "180+1"]
[EndTime "15:17:22 PST"]
[Termination "Ajedrez_con_German won by resignation"]

1. Nf3 {[%clk 0:03:00.9]} 1... e6 {[%clk 0:02:56.9]} 2. g3 {[%clk 0:02:59.4]}
2... d5 {[%clk 0:02:56.3]} 3. Bg2 {[%clk 0:02:59.7]} 3... Nf6 {[%clk 0:02:56.6]}
4. O-O {[%clk 0:02:59.6]} 4... Be7 {[%clk 0:02:56.6]} 5. c4 {[%clk 0:03:00.3]}
5... O-O {[%clk 0:02:56.1]} 6. b3 {[%clk 0:03:00.9]} 6... b6 {[%clk 0:02:56]} 7.
cxd5 {[%clk 0:02:53.9]} 7... Nxd5 {[%clk 0:02:55.6]} 8. Bb2 {[%clk 0:02:52.1]}
8... Bf6 {[%clk 0:02:55.1]} 9. d4 {[%clk 0:02:50.8]} 9... Bb7 {[%clk 0:02:54.8]}
10. e4 {[%clk 0:02:38.3]} 10... Nb4 {[%clk 0:02:53.7]} 11. Re1 {[%clk
0:02:24.2]} 11... c5 {[%clk 0:02:52.6]} 12. e5 {[%clk 0:02:19.4]} 12... Be7
{[%clk 0:02:50.2]} 13. a3 {[%clk 0:02:11.5]} 13... N4a6 {[%clk 0:02:43.8]} 14.
Nc3 {[%clk 0:01:59.8]} 14... Nd7 {[%clk 0:02:07.7]} 15. d5 {[%clk 0:01:57.9]}
15... exd5 {[%clk 0:02:06.8]} 16. Nxd5 {[%clk 0:01:58.6]} 16... Nc7 {[%clk
0:02:01]} 17. Nxe7+ {[%clk 0:01:49.2]} 17... Qxe7 {[%clk 0:02:01.3]} 18. Qd6
{[%clk 0:01:49.9]} 18... Qxd6 {[%clk 0:01:53.5]} 19. exd6 {[%clk 0:01:50.2]}
19... Ne6 {[%clk 0:01:54.1]} 20. Ne5 {[%clk 0:01:14.1]} 20... Nxe5 {[%clk
0:01:40.6]} 21. Bxb7 {[%clk 0:01:13.6]} 21... Rab8 {[%clk 0:01:40.3]} 22. Be4
{[%clk 0:01:07.1]} 22... Nd7 {[%clk 0:01:29]} 23. Rad1 {[%clk 0:01:04.6]} 23...
Rfd8 {[%clk 0:01:21.4]} 24. Bf5 {[%clk 0:01:02]} 24... Ndf8 {[%clk 0:01:19.4]}
25. Rd2 {[%clk 0:00:45.9]} 25... b5 {[%clk 0:01:18.6]} 26. Be5 {[%clk
0:00:40.5]} 26... Rb6 {[%clk 0:01:14.9]} 27. Red1 {[%clk 0:00:36.8]} 27... Ra6
{[%clk 0:01:11.7]} 28. Bb2 {[%clk 0:00:33.3]} 28... Ng6 {[%clk 0:00:59.6]} 29.
d7 {[%clk 0:00:20.6]} 29... Ngf8 {[%clk 0:00:55.3]} 30. b4 {[%clk 0:00:15.9]}
30... Rc6 {[%clk 0:00:40.5]} 31. Be4 {[%clk 0:00:15.8]} 31... Rc7 {[%clk
0:00:38.2]} 32. bxc5 {[%clk 0:00:15.5]} 32... Nxc5 {[%clk 0:00:31.6]} 33. Bd3
{[%clk 0:00:09.2]} 33... Rcxd7 {[%clk 0:00:26.1]} 0-1